fUST/lending_fUST_20250709
["ID","MTS","AMOUNT","RATE_DAILY","PERIOD"]
[370470949,1752033061890,-2829.380721,0.00023013,7]
[370470950,1752033061900,-564.76,0.00023013,2]
[370470951,1752033061911,-2312.24,0.00023013,2]
[370470952,1752033061922,-635.73,0.00023013,2]
[370470953,1752033061933,-1294.35,0.00023013,2]
[370470954,1752033061943,-3315.53,0.00023013,2]
[370470955,1752033061955,-521.23,0.00023013,2]
[370470956,1752033061965,-242.504613,0.00023013,7]
[370470957,1752033061975,-1027.86,0.00023013,2]
[370470958,1752033061986,-242.504613,0.00023013,7]
[370470959,1752033061995,-296.2795177,0.00023013,2]
[370470960,1752033062006,-2577.55,0.00023013,2]
[370470961,1752033062016,-194.734418,0.00023013,7]
[370470962,1752033062027,-151.0,0.00023013,7]
[370470963,1752033062037,-194.734418,0.00023013,7]
[370470964,1752033062047,-567.79,0.00023013,2]
[370470965,1752033062058,-920.09,0.00023013,2]
[370470966,1752033062068,-460.0,0.00023013,2]
[370470967,1752033062078,-897.68,0.00023013,2]
[370470968,1752033062089,-502.91162647,0.00023068,2]
[370470969,1752033062099,-930.24749344,0.00023068,2]
[370470970,1752033062108,-1800.0,0.00023068,2]
[370470971,1752033062118,-602.43599992,0.00023068,2]
[370470972,1752033062129,-1500.0,0.00023068,2]
[370470973,1752033062139,-760.07289996,0.00023077,2]
[370470974,1752033062149,-151.0,0.000232,7]
[370470975,1752033062159,-4624.6139069,0.0002321,8]
[370470976,1752033062168,-151.954173,0.00023287,7]
[370470977,1752033062178,-151.0,0.00023287,7]
[370470978,1752033062188,-337.610938,0.00023287,7]
[370470979,1752033062197,-337.610938,0.00023287,7]
[370470980,1752033062207,-216.780423,0.00023287,7]
[370470981,1752033062217,-216.780423,0.00023287,7]
[370470982,1752033062226,-151.0,0.00023287,7]
[370470983,1752033062236,-200.208506,0.00023287,7]
[370470984,1752033062246,-200.208506,0.00023287,7]
[370470985,1752033062256,-486.43,0.00023287,2]
[370470986,1752033062266,-151.0,0.00023287,7]
[370470987,1752033062276,-198.245192,0.00023287,7]
[370470988,1752033062285,-198.245192,0.00023287,7]
[370470989,1752033062295,-582.23,0.00023287,2]
[370470990,1752033062305,-460.0,0.00023287,2]
[370470991,1752033062480,-222.602066,0.00023287,7]
[370470992,1752033062490,-222.602066,0.00023287,7]
[370470993,1752033062500,-327.636252,0.00023287,7]
[370470994,1752033062510,-327.636252,0.00023287,7]
[370470995,1752033062520,-151.0,0.00023287,7]
[370470996,1752033062529,-242.407787,0.00023287,7]
[370470997,1752033062540,-151.0,0.00023287,7]
[370470998,1752033062550,-242.407787,0.00023287,7]
[370470999,1752033062559,-460.0,0.00023287,2]
[370471000,1752033062569,-472.49,0.00023287,2]
[370471001,1752033062580,-1142.49,0.00023287,2]
[370471002,1752033062590,-904.84,0.00023287,2]
[370471003,1752033062600,-944.5,0.00023287,2]
[370471004,1752033062609,-1651.11,0.00023287,2]
[370471005,1752033062618,-460.0,0.00023287,2]
[370471006,1752033062628,-777.49,0.00023287,2]
[370471007,1752033062638,-511.13,0.00023287,2]
[370471008,1752033062647,-2403.74,0.00023287,2]
[370471009,1752033062656,-460.0,0.00023287,2]
[370471010,1752033062666,-697.11,0.00023287,2]
[370471011,1752033062675,-1647.44,0.00023287,2]
[370471012,1752033062685,-460.0,0.00023287,2]
[370471013,1752033062694,-597.91,0.00023287,2]
[370471014,1752033062705,-460.0,0.00023287,2]
[370471015,1752033062716,-597.38,0.00023287,2]
[370471016,1752033062725,-1548.8,0.00023287,2]
[370471017,1752033062735,-892.67,0.00023287,2]
[370471018,1752033062744,-1657.22,0.00023287,2]
[370471019,1752033062754,-564.76,0.00023287,2]
[370471020,1752033062769,-2312.24,0.00023287,2]
[370471021,1752033062780,-635.73,0.00023287,2]
[370471022,1752033062789,-1294.35,0.00023287,2]
[370471023,1752033062799,-3315.53,0.00023287,2]
[370471024,1752033062809,-521.23,0.00023287,2]
[370471025,1752033062819,-1027.86,0.00023287,2]
[370471026,1752033062828,-2577.55,0.00023287,2]
[370471027,1752033062839,-567.79,0.00023287,2]
[370471028,1752033062849,-920.09,0.00023287,2]
[370471029,1752033062859,-460.0,0.00023287,2]
[370471030,1752033062869,-897.68,0.00023287,2]
[370471031,1752033062879,-295.02914604,0.00023288,2]
[370471032,1752033062888,-154.0,0.00023288,7]
[370471033,1752033062898,-151.0,0.00023314,7]
[370471034,1752033062907,-151.0,0.00023314,7]
[370471035,1752033062919,-428.6820723,0.00023397,2]
[370471036,1752033062930,-760.07289996,0.0002341,2]
[370471037,1752033062942,-4624.6139069,0.00023417,9]
[370471038,1752033062953,-500.0,0.00023456,2]
[370471039,1752033062963,-366.60479216,0.00023486,2]
[370471040,1752033062973,-160.0,0.000235,3]
[370471041,1752033062982,-1000.0,0.000235,2]
[370471042,1752033062992,-86417.52,0.000235,7]
[370471043,1752033063003,-5472.25,0.000235,7]
[370471044,1752033063014,-151.0,0.000235,7]
[370471045,1752033063025,-151.0,0.000235,7]
[370471046,1752033063035,-151.0,0.000235,7]
[370471047,1752033063046,-151.0,0.000235,7]
[370471048,1752033063056,-631.319459,0.000235,7]
[370471049,1752033063066,-257.595622,0.000235,7]
[370471050,1752033063076,-257.595622,0.000235,7]
[370471051,1752033063087,-167.761585,0.000235,2]
[370471052,1752033063098,-191.589992,0.000235,7]
[370471053,1752033063109,-191.589992,0.000235,7]
[370471054,1752033063119,-151.0,0.000235,7]
[370471055,1752033063129,-334.527495,0.000235,7]
[370471056,1752033063139,-334.527495,0.000235,7]
[370471057,1752033063151,-2829.380721,0.000235,7]
[370471058,1752033063161,-2829.380721,0.000235,7]
[370471059,1752033063171,-242.504613,0.000235,7]
[370471060,1752033063182,-242.504613,0.000235,7]
[370471061,1752033063192,-151.0,0.000235,7]
[370471062,1752033063203,-151.0,0.00023561,7]
[370471063,1752033063213,-271.84,0.00023561,2]
[370471064,1752033063224,-271.84,0.00023561,2]
[370471065,1752033063234,-271.84,0.00023561,2]
[370471066,1752033063244,-271.84,0.00023561,2]
[370471067,1752033063253,-271.84,0.00023561,2]
[370471068,1752033063263,-271.84,0.00023561,2]
[370471069,1752033063273,-271.84,0.00023561,2]
[370471070,1752033063285,-271.84,0.00023561,2]
[370471071,1752033063295,-271.84,0.00023561,2]
[370471072,1752033063305,-271.84,0.00023561,2]
[370471073,1752033063314,-271.84,0.00023561,2]
[370471074,1752033063324,-271.84,0.00023561,2]
[370471075,1752033063333,-271.84,0.00023561,2]
[370471076,1752033063343,-271.84,0.00023561,2]
[370471077,1752033063353,-271.84,0.00023561,2]
[370471078,1752033063362,-271.84,0.00023561,2]
[370471079,1752033063372,-271.84,0.00023561,2]
[370471080,1752033063382,-486.43,0.00023561,2]
[370471081,1752033063392,-582.23,0.00023561,2]
[370471082,1752033063406,-460.0,0.00023561,2]
[370471083,1752033063426,-327.636252,0.00023561,7]
[370471084,1752033063436,-327.636252,0.00023561,7]
[370471085,1752033063446,-151.0,0.00023561,7]
[370471086,1752033063456,-242.407787,0.00023561,7]
[370471087,1752033063467,-151.0,0.00023561,7]
[370471088,1752033063477,-242.407787,0.00023561,7]
[370471089,1752033063488,-460.0,0.00023561,2]
[370471090,1752033063498,-472.49,0.00023561,2]
[370471091,1752033063508,-1142.49,0.00023561,2]
[370471092,1752033063518,-904.84,0.00023561,2]
[370471093,1752033063528,-944.5,0.00023561,2]
[370471094,1752033063537,-1651.11,0.00023561,2]
[370471095,1752033063547,-460.0,0.00023561,2]
[370471096,1752033063556,-777.49,0.00023561,2]
[370471097,1752033063565,-511.13,0.00023561,2]
[370471098,1752033063575,-2403.74,0.00023561,2]
[370471099,1752033063585,-460.0,0.00023561,2]
[370471100,1752033063595,-697.11,0.00023561,2]
[370471101,1752033063605,-1647.44,0.00023561,2]
[370471102,1752033063614,-460.0,0.00023561,2]
[370471103,1752033063623,-597.91,0.00023561,2]
[370471104,1752033063633,-460.0,0.00023561,2]
[370471105,1752033063643,-597.38,0.00023561,2]
[370471106,1752033063653,-1548.8,0.00023561,2]
[370471107,1752033063663,-892.67,0.00023561,2]
[370471108,1752033063672,-1657.22,0.00023561,2]
[370471109,1752033063682,-564.76,0.00023561,2]
[370471110,1752033063691,-2312.24,0.00023561,2]
[370471111,1752033063702,-635.73,0.00023561,2]
[370471112,1752033063712,-1294.35,0.00023561,2]
[370471113,1752033063722,-3315.53,0.00023561,2]
[370471114,1752033063732,-521.23,0.00023561,2]
[370471115,1752033063742,-1027.86,0.00023561,2]
[370471116,1752033063752,-2577.55,0.00023561,2]
[370471117,1752033063762,-194.734418,0.00023561,7]
[370471118,1752033063772,-194.734418,0.00023561,7]
[370471119,1752033063782,-567.79,0.00023561,2]
[370471120,1752033063791,-920.09,0.00023561,2]
[370471121,1752033063802,-460.0,0.00023561,2]
[370471122,1752033063812,-897.68,0.00023561,2]
[370471123,1752033063822,-2400.0,0.00023616,2]
[370471124,1752033063832,-502.09679046,0.00023616,2]
[370471125,1752033063842,-4624.6139069,0.00023624,9]
[370471126,1752033063865,-760.07289996,0.00023643,2]
[370471127,1752033063878,-177.8250511,0.00023671,2]
[370471128,1752033063888,-306.1422599,0.00023671,2]
[370471129,1752033063899,-306.0,0.00023671,2]
[370471130,1752033063909,-587.7233729,0.00023671,2]
[370471131,1752033063919,-159.547108,0.00023671,2]
[370471132,1752033063930,-307.6600406,0.00023671,2]
[370471133,1752033063940,-177.8250511,0.00023671,2]
[370471134,1752033063951,-159.547108,0.00023671,2]
[370471135,1752033063961,-177.8250511,0.00023671,2]
[370471136,1752033063972,-159.4672822,0.00023671,2]
[370471137,1752033063982,-151.0,0.00023693,7]
[370471138,1752033063992,-198.245192,0.00023693,7]
[370471139,1752033064003,-198.245192,0.00023693,7]
[370471140,1752033064014,-222.602066,0.00023693,7]
[370471141,1752033064025,-222.602066,0.00023693,7]
[370471142,1752033064036,-150.51005748,0.00023773,2]
[370471143,1752033064047,-34575.00326627,0.00023799,7]
[370471144,1752033064423,-460.0,0.00019178,2]
[370471145,1752033064433,-460.25085513,0.00019178,2]
[370471146,1752033064442,-1193.5,0.00021095,2]
[370471147,1752033064600,-736.60914487,0.00021369,2]
[370471148,1752033064678,-462.64675766,0.00019178,2]
[370471149,1752033064688,-500.0,0.00019973,2]
[370471150,1752033064698,-500.84488849,0.00020521,2]
[370471151,1752033064707,-456.89085513,0.00021369,2]
[370471152,1752033064717,-1193.5,0.00021643,2]
[370471153,1752033064727,-1294.17855261,0.00021668,2]
[370471154,1752033064737,-1193.5,0.00021917,2]
[370471155,1752033064747,-1193.5,0.00022191,2]
[370471156,1752033064757,-1193.5,0.00022465,2]
[370471157,1752033064767,-1193.5,0.00022739,2]
[370471158,1752033064777,-1193.5,0.00023013,2]
[370471159,1752033064786,-1193.5,0.00023287,2]
[370471160,1752033064796,-1193.5,0.00023561,2]
[370471161,1752033064806,-27976.44374368,0.00023799,7]
[370471162,1752033064871,-326.25092417,0.00023799,7]
[370471163,1752033158372,2000.0,0.00027397,120]
[370471164,1752033158638,2000.0,0.00027397,120]
[370471165,1752033159982,2000.0,0.00027397,120]
[370471166,1752033160415,2000.0,0.00027397,120]
[370471167,1752033160669,2000.0,0.00027397,120]
[370471168,1752033161170,2000.0,0.00027397,120]
[370471169,1752033161438,2000.0,0.00027397,120]
[370471170,1752033161688,2000.0,0.00027397,120]
[370471171,1752033162062,2000.0,0.00027397,120]
[370471172,1752033162362,2000.0,0.00027397,120]
[370471173,1752033169829,1000.0,0.00027397,120]
[370471174,1752033170150,1000.0,0.00027397,120]
[370471175,1752033170461,1000.0,0.00027397,120]
[370471176,1752033170760,1000.0,0.00027397,120]
[370471177,1752033171044,1000.0,0.00027397,120]
[370471178,1752033171379,1000.0,0.00027397,120]
[370471179,1752033171688,1000.0,0.00027397,120]
[370471180,1752033171994,1000.0,0.00027397,120]
[370471181,1752033172254,1000.0,0.00027397,120]
[370471182,1752033172626,1000.0,0.00027397,120]
[370471183,1752033383657,653.0,0.00027397,120]
[370471184,1752033467228,168.9113974,0.000222,69]
[370471185,1752033704719,631.1598582,0.00018102,2]
[370471186,1752033941336,412.405807,0.00013699,2]
[370471188,1752034232643,-255.9090842,0.00018548,2]
[370471197,1752034233157,-179.78425889,0.00018731,2]
[370471198,1752034233168,-187.15050114,0.000189,2]
[370471199,1752034233177,-170.10188117,0.00018978,2]
[370471200,1752034233209,-573.62837053,0.00018978,2]
[370471201,1752034233219,-221.85756218,0.00019078,3]
[370471202,1752034233229,-4.50406729,0.00019078,2]
[370471242,1752034238646,-154.74056762,0.00019078,2]
[370471244,1752034238658,-210.46452725,0.00019177,2]
[370471246,1752034238668,-300.0,0.00019177,2]
[370471248,1752034238677,-334.59279285,0.00019177,2]
[370471250,1752034238688,-369.78329955,0.00019178,2]
[370471252,1752034238698,-460.0,0.00019178,2]
[370471254,1752034238707,-460.0,0.00019178,2]
[370471257,1752034238720,-462.07544779,0.00019178,2]
[370471259,1752034238729,-1000.0,0.00019178,2]
[370471260,1752034238739,-599.12336925,0.00019178,2]
[370471263,1752034238749,-460.0,0.00019178,2]
[370471265,1752034238759,-460.0,0.00019178,2]
[370471266,1752034238769,-460.0,0.00019178,2]
[370471268,1752034238778,-474.15907476,0.00019178,2]
[370471271,1752034238789,-576.38311803,0.00019178,2]
[370471274,1752034238799,-443.42058949,0.00019178,2]
[370471277,1752034238809,-460.0,0.00019178,2]
[370471279,1752034238819,-460.0,0.00019178,2]
[370471281,1752034238830,-460.0,0.00019178,2]
[370471283,1752034238840,-461.94896493,0.00019178,2]
[370471285,1752034238849,-460.0,0.00019178,2]
[370471287,1752034238860,-581.39434244,0.00019178,2]
[370471289,1752034238869,-460.0,0.00019178,2]
[370471291,1752034238879,-416.02974482,0.00019178,2]
[370471293,1752034238889,-460.0,0.00019178,2]
[370471295,1752034238899,-460.0,0.00019178,2]
[370471297,1752034238909,-460.0,0.00019178,2]
[370471299,1752034238919,-460.0,0.00019178,2]
[370471301,1752034238928,-460.0,0.00019178,2]
[370471303,1752034238938,-460.0,0.00019178,2]
[370471305,1752034238946,-460.0,0.00019178,2]
[370471307,1752034238956,-460.0,0.00019178,2]
[370471308,1752034238969,-460.0,0.00019178,2]
[370471310,1752034238978,-460.0,0.00019178,2]
[370471312,1752034238989,-460.0,0.00019178,2]
[370471314,1752034238999,-460.0,0.00019178,2]
[370471316,1752034239008,-460.0,0.00019178,2]
[370471318,1752034239018,-460.0,0.00019178,2]
[370471320,1752034239028,-460.0,0.00019178,2]
[370471322,1752034239037,-163.70176925,0.00019178,2]
[370471324,1752034239047,-455.31793739,0.00019178,2]
[370471326,1752034239057,-460.0,0.00019178,2]
[370471328,1752034239067,-460.97842259,0.00019178,2]
[370471330,1752034239076,-460.0,0.00019178,2]
[370471332,1752034239086,-462.24195242,0.00019178,2]
[370471334,1752034239096,-504.27609676,0.00019178,2]
[370471336,1752034239105,-500.0,0.00019178,2]
[370471338,1752034239115,-517.19277393,0.00019178,2]
[370471340,1752034239124,-460.0,0.00019178,2]
[370471342,1752034239134,-460.96079339,0.00019178,2]
[370471344,1752034239143,-460.0,0.00019178,2]
[370471346,1752034239153,-461.491351,0.00019178,2]
[370471348,1752034239162,-460.0,0.00019178,2]
[370471350,1752034239172,-460.0,0.00019178,2]
[370471352,1752034239181,-460.0,0.00019178,2]
[370471354,1752034239191,-463.14195073,0.00019178,2]
[370471356,1752034239201,-460.0,0.00019178,2]
[370471358,1752034239210,-464.31380476,0.00019178,2]
[370471360,1752034239220,-460.0,0.00019178,2]
[370471362,1752034239230,-460.0,0.00019178,2]
[370471364,1752034239242,-462.83963169,0.00019178,2]
[370471366,1752034239251,-460.0,0.00019178,2]
[370471368,1752034239261,-463.26076932,0.00019178,2]
[370471370,1752034239270,-460.0,0.00019178,2]
[370471372,1752034239280,-461.2556543,0.00019178,2]
[370471374,1752034239289,-460.0,0.00019178,2]
[370471376,1752034239300,-460.0,0.00019178,2]
[370471378,1752034239309,-460.0,0.00019178,2]
[370471380,1752034239318,-460.0,0.00019178,2]
[370471382,1752034239328,-472.6222911,0.00019178,2]
[370471384,1752034239337,-460.0,0.00019178,2]
[370471386,1752034239347,-462.44341439,0.00019178,2]
[370471388,1752034239357,-460.0,0.00019178,2]
[370471390,1752034239368,-461.67524412,0.00019178,2]
[370471391,1752034239379,-460.0,0.00019178,2]
[370471393,1752034239389,-460.0,0.00019178,2]
[370471395,1752034239398,-460.0,0.00019178,2]
[370471397,1752034239408,-460.0,0.00019178,2]
[370471399,1752034239418,-460.0,0.00019178,2]
[370471401,1752034239428,-460.0,0.00019178,2]
[370471403,1752034239437,-460.0,0.00019178,2]
[370471405,1752034239446,-460.0,0.00019178,2]
[370471407,1752034239456,-460.0,0.00019178,2]
[370471409,1752034239466,-460.0,0.00019178,2]
[370471410,1752034239475,-460.0,0.00019178,2]
[370471412,1752034239485,-460.0,0.00019178,2]
[370471414,1752034239495,-261.77515466,0.00019178,2]
[370471416,1752034239505,-460.0,0.00019178,2]
[370471418,1752034239514,-460.0,0.00019178,2]
[370471420,1752034239524,-460.0,0.00019178,2]
[370471422,1752034239534,-460.0,0.00019178,2]
[370471424,1752034239546,-460.0,0.00019178,2]
[370471426,1752034239555,-460.0,0.00019178,2]
[370471428,1752034239565,-460.0,0.00019178,2]
[370471430,1752034239574,-460.0,0.00019178,2]
[370471432,1752034239589,-305.22392586,0.00019178,2]
[370471434,1752034239600,-460.0,0.00019178,2]
[370471436,1752034239610,-463.92856086,0.00019178,2]
[370471438,1752034239620,-460.0,0.00019178,2]
[370471440,1752034239629,-369.032464,0.00019178,2]
[370471442,1752034239639,-460.0,0.00019178,2]
[370471444,1752034239648,-460.0,0.00019178,2]
[370471446,1752034239663,-365.87744521,0.00019178,2]
[370471448,1752034239678,-460.0,0.00019178,2]
[370471450,1752034239687,-460.0,0.00019178,2]
[370471453,1752034239703,-618.85,0.00019178,2]
[370471455,1752034239717,-1241.3,0.00019178,2]
[370471457,1752034239729,-479.21,0.00019178,2]
[370471460,1752034239742,-460.0,0.00019178,2]
[370471462,1752034239755,-460.0,0.00019178,2]
[370471464,1752034239767,-460.0,0.00019178,2]
[370471466,1752034239778,-460.0,0.00019178,2]
[370471468,1752034239790,-461.30659112,0.00019178,2]
[370471471,1752034239803,-460.0,0.00019178,2]
[370471473,1752034239815,-460.0,0.00019178,2]
[370471475,1752034239827,-460.0,0.00019178,2]
[370471477,1752034239840,-460.0,0.00019178,2]
[370471479,1752034239852,-756.76,0.00019178,2]
[370471482,1752034239865,-568.22553385,0.00019178,2]
[370471484,1752034239880,-460.0,0.00019178,2]
[370471486,1752034239892,-460.0,0.00019178,2]
[370471488,1752034239905,-690.51,0.00019178,2]
[370471491,1752034239917,-475.39008063,0.00019178,2]
[370471493,1752034239930,-463.94441858,0.00019178,2]
[370471495,1752034239943,-460.0,0.00019178,2]
[370471498,1752034239955,-460.0,0.00019178,2]
[370471500,1752034239966,-460.0,0.00019178,2]
[370471502,1752034239978,-460.0,0.00019178,2]
[370471504,1752034239990,-461.8826385,0.00019178,2]
[370471507,1752034240003,-460.0,0.00019178,2]
[370471509,1752034240016,-460.0,0.00019178,2]
[370471511,1752034240028,-460.0,0.00019178,2]
[370471513,1752034240039,-963.44,0.00019178,2]
[370471516,1752034240053,-709.87,0.00019178,2]
[370471518,1752034240065,-460.0,0.00019178,2]
[370471520,1752034240077,-460.0,0.00019178,2]
[370471522,1752034240089,-460.66581518,0.00019178,2]
[370471524,1752034240101,-460.0,0.00019178,2]
[370471526,1752034240111,-460.0,0.00019178,2]
[370471530,1752034240133,-460.91132024,0.00019178,2]
[370471532,1752034240146,-460.0,0.00019178,2]
[370471534,1752034240159,-892.36,0.00019178,2]
[370471537,1752034240173,-240.8005879,0.00019178,2]
[370471539,1752034240184,-460.0,0.00019178,2]
[370471541,1752034240198,-460.0,0.00019178,2]
[370471544,1752034240211,-460.0,0.00019178,2]
[370471546,1752034240227,-460.0,0.00019178,2]
[370471548,1752034240243,-460.0,0.00019178,2]
[370471551,1752034240257,-789.02,0.00019178,2]
[370471553,1752034240271,-460.0,0.00019178,2]
[370471555,1752034240283,-460.0,0.00019178,2]
[370471558,1752034240297,-460.0,0.00019178,2]
[370471560,1752034240312,-460.0,0.00019178,2]
[370471562,1752034240324,-460.0,0.00019178,2]
[370471565,1752034240340,-539.31,0.00019178,2]
[370471567,1752034240353,-460.0,0.00019178,2]
[370471570,1752034240367,-460.0,0.00019178,2]
[370471571,1752034240380,-460.0,0.00019178,2]
[370471573,1752034240391,-460.0,0.00019178,2]
[370471575,1752034240401,-460.0,0.00019178,2]
[370471577,1752034240413,-460.0,0.00019178,2]
[370471579,1752034240423,-538.83,0.00019178,2]
[370471581,1752034240435,-460.42470848,0.00019178,2]
[370471584,1752034240447,-460.0,0.00019178,2]
[370471586,1752034240460,-460.0,0.00019178,2]
[370471588,1752034240473,-461.59009056,0.00019178,2]
[370471591,1752034240486,-460.0,0.00019178,2]
[370471593,1752034240499,-460.0,0.00019178,2]
[370471595,1752034240511,-518.98669409,0.00019178,2]
[370471597,1752034240521,-460.0,0.00019178,2]
[370471599,1752034240532,-460.0,0.00019178,2]
[370471601,1752034240544,-460.0,0.00019178,2]
[370471604,1752034240557,-460.0,0.00019178,2]
[370471606,1752034240569,-460.0,0.00019178,2]
[370471608,1752034240583,-460.0,0.00019178,2]
[370471611,1752034240595,-250.5099498,0.00019178,2]
[370471613,1752034240606,-502.49764899,0.00019178,2]
[370471615,1752034240617,-460.0,0.00019178,2]
[370471617,1752034240628,-460.0,0.00019178,2]
[370471619,1752034240639,-550.96,0.00019178,2]
[370471621,1752034240650,-463.03078449,0.00019178,2]
[370471623,1752034240661,-460.0,0.00019178,2]
[370471625,1752034240672,-460.0,0.00019178,2]
[370471628,1752034240685,-460.0,0.00019178,2]
[370471630,1752034240701,-1657.0,0.00019178,2]
[370471633,1752034240714,-460.0,0.00019178,2]
[370471635,1752034240726,-460.0,0.00019178,2]
[370471637,1752034240737,-460.0,0.00019178,2]
[370471639,1752034240749,-460.0,0.00019178,2]
[370471641,1752034240767,-461.34368157,0.00019178,2]
[370471643,1752034240781,-1934.06,0.00019178,2]
[370471645,1752034240796,-460.0,0.00019178,2]
[370471648,1752034240814,-460.0,0.00019178,2]
[370471651,1752034240826,-460.0,0.00019178,2]
[370471653,1752034240840,-460.0,0.00019178,2]
[370471655,1752034240851,-460.0,0.00019178,2]
[370471657,1752034240863,-460.0,0.00019178,2]
[370471659,1752034240875,-460.0,0.00019178,2]
[370471662,1752034240887,-460.0,0.00019178,2]
[370471664,1752034240899,-460.0,0.00019178,2]
[370471666,1752034240910,-462.05284619,0.00019178,2]
[370471668,1752034240922,-460.0,0.00019178,2]
[370471670,1752034240934,-245.935534,0.00019178,2]
[370471672,1752034240945,-346.70258703,0.00019451,2]
[370471674,1752034240957,-178.18132238,0.00019451,2]
[370471676,1752034240968,-553.3733409,0.00019451,2]
[370471679,1752034240979,-553.3733409,0.00019451,2]
[370471681,1752034240991,-553.3733409,0.00019451,2]
[370471683,1752034241003,-553.3733409,0.00019451,2]
[370471685,1752034241015,-553.3733409,0.00019451,2]
[370471687,1752034241026,-553.3733409,0.00019451,2]
[370471690,1752034241037,-553.3733409,0.00019451,2]
[370471692,1752034241048,-553.3733409,0.00019451,2]
[370471694,1752034241059,-553.3733409,0.00019451,2]
[370471696,1752034241070,-553.3733409,0.00019451,2]
[370471698,1752034241082,-553.3733409,0.00019451,2]
[370471700,1752034241093,-553.3733409,0.00019451,2]
[370471702,1752034241105,-553.3733409,0.00019451,2]
[370471705,1752034241116,-553.3733409,0.00019451,2]
[370471707,1752034241131,-553.3733409,0.00019451,2]
[370471709,1752034241143,-1003.19191367,0.00019452,2]
[370471711,1752034241154,-466.63132801,0.00019452,2]
[370471713,1752034241166,-460.0,0.00019452,2]
[370471716,1752034241178,-462.59104785,0.00019452,2]
[370471718,1752034241189,-211.6603477,0.00019452,2]
[370471720,1752034241201,-460.0,0.00019452,2]
[370471722,1752034241212,-460.0,0.00019452,2]
[370471724,1752034241223,-460.0,0.00019452,2]
[370471726,1752034241234,-460.56335982,0.00019452,2]
[370471729,1752034241246,-462.3557801,0.00019452,2]
[370471731,1752034241258,-464.03851449,0.00019452,2]
[370471733,1752034241270,-465.0,0.00019452,2]
[370471735,1752034241281,-460.0,0.00019452,2]
[370471737,1752034241293,-460.0,0.00019452,2]
[370471739,1752034241304,-460.0,0.00019452,2]
[370471742,1752034241316,-460.0,0.00019452,2]
[370471744,1752034241327,-460.0,0.00019452,2]
[370471746,1752034241339,-460.0,0.00019452,2]
[370471748,1752034241350,-460.0,0.00019452,2]
[370471750,1752034241361,-460.0,0.00019452,2]
[370471752,1752034241373,-460.0,0.00019452,2]
[370471755,1752034241384,-460.0,0.00019452,2]
[370471757,1752034241395,-460.0,0.00019452,2]
[370471759,1752034241407,-460.0,0.00019452,2]
[370471761,1752034241418,-460.0,0.00019452,2]
[370471763,1752034241429,-618.85,0.00019452,2]
[370471765,1752034241441,-1241.3,0.00019452,2]
[370471767,1752034241453,-479.21,0.00019452,2]
[370471769,1752034241464,-460.0,0.00019452,2]
[370471771,1752034241475,-460.0,0.00019452,2]
[370471774,1752034241487,-460.0,0.00019452,2]
[370471776,1752034241498,-460.0,0.00019452,2]
[370471793,1752034241699,-460.0,0.00019452,2]
[370471794,1752034241717,-756.76,0.00019452,2]
[370471795,1752034241729,-460.0,0.00019452,2]